bitfinex/quotes_BTCUSD_20220202
["timestamp","ask_amount","ask_price","bid_price","bid_amount"]
[1643813170046,0.71243509,37794.0,37792.0,0.001]
[1643813170247,0.71243509,37794.0,37789.0,0.07287624]
[1643813170248,0.0487,37794.0,37789.0,0.07287624]
[1643813170448,0.0487,37794.0,37789.0,0.10883056]
[1643813170647,0.0487,37794.0,37790.0,0.00514128]
[1643813170949,0.9049628,37794.0,37788.0,0.001]
[1643813171150,0.29498699,37793.0,37788.0,0.001]
[1643813171495,0.40196856,37790.0,37786.0,0.20232]
[1643813171698,0.449171,37789.0,37786.0,0.20232]
[1643813171898,0.350471,37788.0,37786.0,0.20232]
[1643813172097,0.350471,37788.0,37786.0,0.30395]
[1643813172098,0.6987,37787.0,37786.0,0.30395]
[1643813172294,0.399171,37787.0,37786.0,0.30395]
[1643813172498,0.0487,37787.0,37786.0,0.30395]
[1643813172695,0.0287,37787.0,37786.0,0.30395]
[1643813173296,0.0287,37787.0,37786.0,0.20232]
[1643813173897,0.0287,37787.0,37786.0,0.00801982]
[1643813174094,0.0287,37787.0,37786.0,0.0021]
[1643813174698,0.8,37786.0,37784.0,0.001]
[1643813174903,0.399171,37785.0,37784.0,0.001]
[1643813175104,0.0487,37785.0,37784.0,0.001]
[1643813176162,0.04869976,37785.0,37784.0,0.001]
[1643813177670,0.04869976,37785.0,37784.0,0.092148]
[1643813178065,0.04869976,37785.0,37784.0,0.026]
[1643813178669,0.89037088,37785.0,37784.0,0.026]
[1643813178870,0.89037088,37785.0,37782.0,0.0031]
[1643813178871,0.8,37784.0,37782.0,0.0031]
[1643813179104,0.58674668,37782.0,37781.0,0.01]
[1643813179299,0.98592868,37782.0,37781.0,0.01]
[1643813179499,0.55,37781.0,37780.0,0.05]
[1643813179700,0.3,37779.0,37778.0,0.002172]
[1643813179901,0.0487,37779.0,37778.0,0.002172]
[1643813180098,0.0487,37779.0,37777.0,0.001]
[1643813180301,0.0487,37779.0,37774.0,0.001172]
[1643813180700,0.24806914,37776.0,37775.0,0.0002]
[1643813180899,0.0487,37776.0,37775.0,0.0002]
[1643813181604,0.0487,37785.0,37775.0,0.482989]
[1643813181801,0.0487,37785.0,37778.0,0.066151]
[1643813182002,0.26471373,37781.0,37778.0,0.066151]
[1643813182300,0.0487,37785.0,37778.0,0.066151]
[1643813182501,0.30359907,37782.0,37778.0,0.05810553]
[1643813183061,0.0487,37785.0,37778.0,0.05810553]
[1643813183261,0.0487,37785.0,37778.0,0.06392969]
[1643813183464,0.0487,37785.0,37781.0,0.066149]
[1643813183858,0.132307,37789.0,37782.0,0.00727293]
[1643813184159,0.39758059,37789.0,37782.0,0.00636293]
[1643813184360,0.23229,37794.0,37787.0,0.0896395]
[1643813184560,0.23229,37794.0,37787.0,0.09495255]
[1643813184561,0.1,37794.0,37787.0,0.09495255]
[1643813184761,0.1,37794.0,37788.0,0.00699005]
[1643813184962,0.1,37794.0,37789.0,0.00568578]
[1643813185163,0.1,37794.0,37789.0,0.00686578]
[1643813185362,0.1,37794.0,37793.0,0.07747165]
[1643813185565,0.31998684,37798.0,37793.0,0.00576977]
[1643813185760,0.31998684,37798.0,37794.0,0.00760858]
[1643813185761,0.31956542,37798.0,37794.0,0.00760858]
[1643813185958,0.31956542,37798.0,37790.0,0.193344]
[1643813186161,0.31956542,37798.0,37790.0,0.20100169]
[1643813186359,0.31956542,37798.0,37791.0,0.0052252]
[1643813186627,0.132259,37808.0,37796.0,0.066126]
[1643813186832,2.57220046,37813.0,37796.0,0.07370564]
[1643813187026,2.57220046,37813.0,37796.0,0.07217634]
[1643813187227,2.57220046,37813.0,37797.0,0.00613731]
[1643813187428,5.15021,37800.0,37798.0,0.00592829]
[1643813187627,5.15021,37800.0,37799.0,0.00687861]
[1643813187829,5.15021,37800.0,37798.0,0.09486644]
[1643813188031,5.15021,37800.0,37796.0,0.066126]
[1643813188430,5.15021,37800.0,37796.0,0.13224675]
[1643813189029,5.15021,37800.0,37797.0,0.30377246]
[1643813189230,4.25257188,37800.0,37798.0,0.10329741]
[1643813189834,4.25257188,37800.0,37798.0,0.30329741]
[1643813190036,4.25257188,37800.0,37799.0,1.10594954]
[1643813190254,4.25257188,37800.0,37799.0,0.9]
[1643813190659,4.25257188,37800.0,37799.0,1.18916462]
[1643813191155,4.25234809,37800.0,37799.0,1.18916462]
[1643813192058,4.25234809,37800.0,37799.0,0.1]
[1643813192260,4.25234809,37800.0,37798.0,0.10329741]
[1643813192460,4.25234809,37800.0,37796.0,0.13224675]
[1643813192660,4.25146451,37800.0,37796.0,0.13224675]
[1643813192859,4.25146451,37800.0,37796.0,0.066126]
[1643813193658,4.2504409,37800.0,37796.0,0.066126]
[1643813195498,4.2504409,37800.0,37797.0,0.06611621]
[1643813195898,4.25035895,37800.0,37797.0,0.06611621]
[1643813196500,4.25013631,37800.0,37797.0,0.06611621]
[1643813196700,4.25013631,37800.0,37796.0,0.066126]
[1643813197103,0.29773584,37799.0,37792.0,0.066131]
[1643813197502,0.10014,37798.0,37792.0,0.066131]
[1643813197955,0.10014,37798.0,37792.0,0.165214]
[1643813198154,0.30606502,37797.0,37792.0,0.165214]
[1643813198356,0.3809717,37795.0,37792.0,0.066131]
[1643813198555,0.3809717,37795.0,37791.0,0.00649088]
[1643813198857,0.0487,37796.0,37790.0,0.021176]
[1643813198858,0.0487,37796.0,37790.0,0.02748231]
[1643813199254,0.0487,37796.0,37790.0,0.02908931]
[1643813199455,0.0487,37796.0,37791.0,0.00755843]
[1643813199657,0.0487,37796.0,37792.0,0.00600415]
[1643813199855,0.0487,37796.0,37794.0,0.066127]
[1643813200257,0.40031969,37798.0,37794.0,0.07117674]
[1643813200458,0.10014,37798.0,37794.0,0.066127]
[1643813200855,0.10014,37798.0,37794.0,0.07251904]
[1643813201055,0.10014,37798.0,37794.0,0.066127]
[1643813201257,0.26532625,37797.0,37794.0,0.066127]
[1643813201506,0.10014,37798.0,37795.0,0.0073261]
[1643813201702,0.10014,37798.0,37796.0,0.00647163]
[1643813201902,0.10014,37798.0,37794.0,0.066127]
[1643813201903,4.2499131,37800.0,37799.0,0.066117]
[1643813202102,4.2499131,37800.0,37799.0,0.0731799]
[1643813202303,4.2499131,37800.0,37799.0,0.066117]
[1643813203206,4.2499131,37800.0,37793.0,0.23214536]
[1643813203207,0.8,37799.0,37793.0,0.132244]
[1643813203405,0.2744096,37794.0,37790.0,0.02750803]
[1643813203605,0.0487,37793.0,37790.0,0.02013632]
[1643813204106,0.47972472,37792.0,37790.0,0.02013632]
[1643813204304,0.0487,37791.0,37790.0,0.02013632]
[1643813205352,0.3487,37791.0,37790.0,0.02013632]
[1643813205554,0.66214909,37791.0,37790.0,0.02013632]
[1643813205754,0.65761857,37791.0,37790.0,0.02013632]
[1643813206152,0.65431857,37791.0,37790.0,0.02013632]
[1643813206554,0.0454,37791.0,37790.0,0.02013632]
[1643813207153,0.04534,37791.0,37790.0,0.02013632]
[1643813208053,0.03934,37791.0,37790.0,0.02013632]
[1643813208855,0.389822,37791.0,37790.0,0.02013632]
[1643813209103,0.389822,37791.0,37780.0,0.33484556]
[1643813209104,0.8,37787.0,37777.0,0.33484556]
[1643813209307,0.8,37787.0,37775.0,0.39150604]
[1643813209308,0.32010545,37786.0,37778.0,7.2e-05]
[1643813209506,0.25439898,37784.0,37778.0,7.2e-05]
[1643813209704,0.8,37781.0,37775.0,0.0002]
[1643813209903,0.36237916,37782.0,37773.0,0.002]
[1643813209904,0.87640108,37779.0,37773.0,0.002]
[1643813210102,0.399182,37778.0,37774.0,7.2e-05]
[1643813210301,0.36237916,37782.0,37774.0,7.2e-05]
[1643813210302,0.0487,37777.0,37774.0,7.2e-05]
[1643813210503,0.0487,37776.0,37774.0,7.2e-05]
[1643813210702,0.54752876,37775.0,37773.0,0.0001]
[1643813210903,0.54752876,37775.0,37770.0,0.0031]
[1643813210904,0.0487,37774.0,37770.0,0.0031]
[1643813211104,0.0487,37774.0,37771.0,7.2e-05]
[1643813211702,0.0487,37774.0,37770.0,0.0031]
[1643813211908,0.0487,37774.0,37771.0,0.52792701]
[1643813212104,0.0487,37774.0,37770.0,0.0031]
[1643813212105,0.38727189,37774.0,37770.0,0.39440604]
[1643813212408,0.68619062,37774.0,37770.0,0.0031]
[1643813212605,0.68396237,37774.0,37770.0,0.0031]
[1643813212866,0.27156082,37771.0,37770.0,0.0031]
[1643813213067,0.32026082,37771.0,37770.0,0.0031]
[1643813213265,0.0487,37771.0,37770.0,0.0031]
[1643813214368,0.0407574,37771.0,37770.0,0.0031]
[1643813214766,0.0407574,37771.0,37770.0,0.353582]
[1643813214966,0.0407574,37771.0,37770.0,0.0031]
[1643813217212,0.4407574,37771.0,37770.0,0.0031]
[1643813217410,0.7912394,37771.0,37770.0,0.0031]
[1643813217810,0.7912394,37771.0,37767.0,0.003]
[1643813217811,0.55,37770.0,37767.0,0.003]
[1643813218014,0.55,37770.0,37758.0,0.005972]
[1643813218015,1.05535905,37768.0,37761.0,0.39418984]
[1643813218213,1.507001,37767.0,37764.0,7.2e-05]
[1643813218412,1.150482,37766.0,37761.0,0.000172]
[1643813218610,1.150482,37766.0,37756.0,0.0031]
[1643813218611,0.8,37764.0,37753.0,0.005872]
[1643813218809,0.75,37762.0,37753.0,0.005172]
[1643813219009,0.0487,37761.0,37753.0,0.3412543]
[1643813219209,0.27261751,37760.0,37754.0,0.004872]
[1643813219511,0.09633939,37750.0,37745.0,0.001]
[1643813219817,0.29780103,37732.0,37731.0,0.02378996]
[1643813220013,0.27330681,37732.0,37731.0,0.350482]
[1643813220255,0.27330681,37732.0,37731.0,0.75114789]
[1643813220256,0.14698489,37732.0,37731.0,0.75114789]
[1643813220459,0.00279,37732.0,37731.0,0.75114789]
[1643813220755,0.0487,37740.0,37731.0,1.1913806]
[1643813221060,0.04814,37739.0,37732.0,0.005708]
[1643813221255,0.0487,37744.0,37732.0,0.313527]
[1643813221456,0.28974823,37744.0,37735.0,0.25508966]
[1643813221654,0.015,37742.0,37737.0,0.20052]
[1643813221855,0.24104823,37744.0,37738.0,0.350408]
[1643813222056,0.129912,37753.0,37739.0,0.307819]
[1643813222257,0.0487,37753.0,37750.0,0.066205]
[1643813222461,0.132404,37763.0,37750.0,0.066205]
[1643813222660,2.91930224,37764.0,37751.0,0.307159]
[1643813222958,0.26734416,37761.0,37753.0,0.09049903]
[1643813223156,0.28234416,37761.0,37755.0,0.132377]
[1643813223356,0.26734416,37761.0,37755.0,0.181077]
[1643813223555,0.26734416,37761.0,37755.0,0.132377]
[1643813223999,0.26734416,37761.0,37758.0,0.066188]
[1643813224402,0.132386,37768.0,37756.0,0.00744056]
[1643813224403,0.33981805,37769.0,37756.0,0.00744056]
[1643813224600,0.015,37778.0,37758.0,0.00744056]
[1643813224802,0.015,37776.0,37759.0,0.0487]
[1643813225006,0.7,37776.0,37759.0,0.05567708]
[1643813225201,0.7,37776.0,37766.0,0.132339]
[1643813225404,0.301634,37769.0,37766.0,0.132339]
[1643813225602,0.20480195,37773.0,37768.0,0.066169]
[1643813225802,4.2478131,37777.0,37768.0,0.066169]
[1643813226202,4.2478131,37777.0,37768.0,7.2e-05]
[1643813226203,0.015,37769.0,37768.0,7.2e-05]
[1643813226806,0.015,37769.0,37763.0,0.132349]
[1643813226807,0.22361097,37769.0,37763.0,0.132349]
[1643813227003,0.20861097,37769.0,37763.0,0.132349]
[1643813227206,0.015,37764.0,37763.0,0.132349]
[1643813227607,0.38482669,37767.0,37763.0,0.132349]
[1643813228059,0.38482669,37767.0,37759.0,0.066188]
[1643813228260,0.38482669,37767.0,37759.0,0.026188]
[1643813228461,0.015,37760.0,37750.0,0.0013]
[1643813228662,0.0487,37764.0,37758.0,0.00040219]
[1643813228961,0.015,37759.0,37758.0,0.00040219]
[1643813229360,0.06360496,37768.0,37758.0,0.00040219]
[1643813229559,0.31272802,37767.0,37758.0,0.00040219]
[1643813229863,0.3123497,37764.0,37758.0,0.00040219]
[1643813230364,0.23492401,37758.0,37756.0,0.132372]
[1643813230560,0.32452035,37763.0,37756.0,0.132372]
[1643813230761,0.31859396,37771.0,37756.0,0.132372]
[1643813230964,0.8237,37784.0,37756.0,0.13772798]
[1643813231163,0.32161059,37770.0,37757.0,0.00576037]
[1643813231362,0.30942547,37776.0,37759.0,0.13509504]
[1643813231612,0.23331766,37776.0,37768.0,0.26575601]
[1643813231809,0.066162,37782.0,37769.0,0.0487]
[1643813231810,0.08106696,37782.0,37769.0,0.0487]
[1643813232011,0.066162,37782.0,37769.0,0.0487]
[1643813232210,0.30844944,37780.0,37769.0,0.148772]
[1643813232409,0.30844944,37780.0,37772.0,0.10302406]
[1643813232610,4.24744637,37777.0,37772.0,0.15302406]
[1643813232813,4.24744637,37777.0,37770.0,7.2e-05]
[1643813233017,4.24744637,37777.0,37773.0,0.066164]
[1643813233214,0.01490496,37774.0,37772.0,0.132319]
[1643813233412,4.26235133,37777.0,37772.0,0.132319]
[1643813233811,0.01490496,37773.0,37772.0,0.132319]
[1643813234012,0.01490496,37772.0,37769.0,7.2e-05]
[1643813234215,0.31691539,37772.0,37771.0,0.066169]
[1643813234511,4.24744637,37777.0,37771.0,0.066169]
[1643813234512,4.26235133,37777.0,37771.0,0.066169]
[1643813234815,0.01490496,37770.0,37769.0,7.2e-05]
[1643813235015,0.01490496,37770.0,37768.0,7.2e-05]
[1643813235259,0.2682227,37769.0,37768.0,7.2e-05]
[1643813235564,0.0487,37773.0,37764.0,0.2939751]
[1643813235565,0.30478998,37773.0,37764.0,0.2939751]
[1643813235757,0.32750126,37771.0,37764.0,0.07770872]
[1643813236155,0.32750126,37771.0,37765.0,0.132343]
[1643813236356,0.01490496,37768.0,37765.0,0.132343]
[1643813236561,0.2389229,37767.0,37765.0,0.132343]
[1643813236756,0.30539271,37766.0,37759.0,0.3]
[1643813236958,0.30539271,37766.0,37760.0,0.350482]
[1643813237157,0.30539271,37766.0,37760.0,7.2e-05]
[1643813237558,0.01490496,37762.0,37761.0,0.132356]
[1643813237756,0.30539271,37766.0,37761.0,0.482838]
[1643813237960,0.411,37765.0,37761.0,0.132356]
[1643813239403,0.26079,37765.0,37761.0,0.132356]
[1643813239604,0.00666411,37772.0,37766.0,0.07601041]
[1643813239804,0.20364529,37773.0,37766.0,0.07601041]
[1643813240203,0.00666411,37772.0,37766.0,0.07601041]
[1643813240407,0.00666411,37772.0,37764.0,7.2e-05]
[1643813241002,0.00658283,37772.0,37766.0,0.132338]
[1643813241204,0.24317624,37768.0,37763.0,0.2007]
[1643813241405,0.24317624,37768.0,37764.0,0.350482]
[1643813241806,0.00658283,37767.0,37764.0,0.066181]
[1643813242003,0.00658283,37767.0,37762.0,7.2e-05]
[1643813242004,0.25529483,37766.0,37762.0,7.2e-05]
[1643813242208,0.00658283,37761.0,37760.0,7.2e-05]
[1643813242607,0.52719817,37761.0,37760.0,7.2e-05]
[1643813242855,0.00658283,37753.0,37752.0,0.31044034]
[1643813243062,0.00658283,37753.0,37752.0,0.350554]
[1643813243254,0.26931534,37761.0,37756.0,0.066195]
[1643813243255,0.00658283,37760.0,37756.0,0.066195]
[1643813243460,0.0487,37760.0,37757.0,0.005472]
[1643813243654,0.05528283,37760.0,37757.0,0.005472]
[1643813243854,0.5903,37770.0,37757.0,0.31584034]
[1643813244055,0.24398283,37771.0,37758.0,0.3356493]
[1643813244253,0.28440136,37768.0,37760.0,0.3356493]
[1643813244455,0.28440136,37768.0,37759.0,0.3357213]
[1643813244654,0.00658283,37769.0,37765.0,0.066179]
[1643813244855,0.36666256,37771.0,37765.0,0.066179]
[1643813245055,0.30637806,37770.0,37765.0,0.066179]
[1643813245256,0.34525856,37768.0,37765.0,0.066179]
[1643813245455,0.34525856,37768.0,37764.0,7.2e-05]
[1643813245657,0.22947487,37766.0,37763.0,7.2e-05]
[1643813246061,0.27593659,37765.0,37763.0,7.2e-05]
[1643813246260,0.27593659,37765.0,37762.0,0.132355]
[1643813246503,0.00658283,37763.0,37762.0,0.132355]
[1643813246702,0.27593659,37765.0,37762.0,0.482837]
[1643813246904,0.27593659,37765.0,37762.0,0.132355]
[1643813247302,0.066185,37767.0,37762.0,0.132355]
[1643813247505,0.066185,37767.0,37764.0,0.10152801]
[1643813247703,0.0062354,37769.0,37765.0,0.066176]
[1643813247904,0.30607486,37773.0,37765.0,0.066176]
[1643813248204,0.0487,37768.0,37763.0,7.2e-05]
[1643813248406,0.0062354,37764.0,37763.0,7.2e-05]
[1643813248609,0.0549354,37764.0,37757.0,7.2e-05]
[1643813248805,0.0549354,37764.0,37755.0,0.3356493]
[1643813248806,0.0062354,37762.0,37756.0,0.19451474]
[1643813249005,0.0487,37761.0,37757.0,0.005405]
[1643813249306,0.0487,37761.0,37760.0,0.06619]
[1643813249504,0.0487,37761.0,37760.0,0.411647]
[1643813250652,0.0487,37761.0,37760.0,0.4101042]
[1643813251052,0.0487,37761.0,37760.0,0.68154604]
[1643813251259,0.0487,37761.0,37760.0,0.345457]
[1643813251455,0.0487,37761.0,37759.0,0.005403]
[1643813251656,0.0487,37761.0,37759.0,0.40227804]
[1643813251853,0.0187,37761.0,37759.0,0.40227804]
[1643813252054,0.0187,37761.0,37760.0,0.33608904]
[1643813252254,0.01846422,37761.0,37759.0,0.45777985]
[1643813253553,0.01096269,37761.0,37759.0,0.45777985]
[1643813254002,0.28691312,37762.0,37760.0,0.58450966]
[1643813254199,0.28691312,37762.0,37759.0,0.066189]
[1643813254200,0.28691312,37762.0,37761.0,0.58450966]
[1643813254400,0.28691312,37762.0,37761.0,0.19291881]
[1643813254601,0.28691312,37762.0,37761.0,0.39229001]
[1643813254799,0.28691312,37762.0,37761.0,0.58525098]
[1643813255200,0.28691312,37762.0,37761.0,0.55897459]
[1643813255601,0.22710481,37762.0,37761.0,0.39229001]
[1643813255800,0.22710481,37762.0,37761.0,0.16668458]
[1643813255999,0.22710481,37762.0,37761.0,0.33626697]
[1643813256403,0.22710481,37762.0,37760.0,0.55901026]
[1643813256700,0.22710481,37762.0,37759.0,0.066189]
[1643813256701,0.22710481,37762.0,37761.0,0.33629133]
[1643813256901,0.53514204,37762.0,37761.0,0.3362948]
[1643813257100,0.65,37761.0,37760.0,0.11122733]
[1643813257305,0.5,37760.0,37756.0,0.0004012]
[1643813257502,0.09790605,37758.0,37756.0,0.0004012]
[1643813257756,0.09690605,37758.0,37756.0,0.0004012]
[1643813257952,0.0487,37761.0,37756.0,0.0004012]
[1643813258456,0.20976801,37757.0,37756.0,0.59897147]
[1643813258654,0.20976801,37757.0,37756.0,0.20666001]
[1643813259059,0.066187,37766.0,37756.0,0.28934863]
[1643813259254,0.330962,37772.0,37760.0,0.39234294]
[1643813259753,0.28594011,37766.0,37760.0,0.39234294]
[1643813259955,0.28594011,37766.0,37760.0,0.53240675]
[1643813259956,0.21317854,37763.0,37760.0,0.53240675]
[1643813260155,0.21317854,37763.0,37760.0,0.132363]
[1643813260356,0.21317854,37763.0,37762.0,0.066179]
[1643813260558,0.21317854,37763.0,37762.0,0.23141798]
[1643813260856,4.37980337,37777.0,37762.0,0.46457425]
[1643813261056,3.3892,37776.0,37763.0,0.9707001]
[1643813261261,49.60304,37764.0,37763.0,1.30803163]
[1643813261509,49.60304,37764.0,37763.0,1.16076367]
[1643813261510,48.555317,37764.0,37763.0,1.16076367]
[1643813261716,48.555317,37764.0,37763.0,0.70747219]
[1643813261909,48.555317,37764.0,37763.0,0.27267954]
[1643813261910,48.158368,37764.0,37763.0,0.27267954]
[1643813262308,48.158368,37764.0,37763.0,0.26523898]
[1643813262512,48.158368,37764.0,37763.0,0.16523898]
[1643813263714,48.15059775,37764.0,37763.0,0.16523898]
[1643813263914,48.40092587,37764.0,37763.0,0.16523898]
[1643813264113,48.40092587,37764.0,37762.0,0.45855172]
[1643813264317,0.55,37763.0,37760.0,0.01988441]
[1643813264515,0.85979052,37763.0,37762.0,0.39239011]
[1643813264712,0.85979052,37763.0,37760.0,0.01988441]
[1643813264713,0.8,37763.0,37761.0,0.39239011]
[1643813264910,0.55,37763.0,37761.0,0.39239011]
[1643813265110,48.53851502,37764.0,37760.0,0.01988441]
[1643813265360,48.53851502,37764.0,37763.0,0.39251472]
[1643813265561,48.53851502,37764.0,37763.0,0.39251704]
[1643813265959,48.53851502,37764.0,37761.0,7.2e-05]
[1643813266161,48.20217,37764.0,37763.0,0.066182]
[1643813266362,47.95184188,37764.0,37763.0,0.066182]
[1643813266760,47.95176097,37764.0,37763.0,0.066182]
[1643813269002,48.19649845,37764.0,37763.0,0.066182]
[1643813269204,47.29830988,37764.0,37763.0,0.066182]
[1643813269611,47.0535724,37764.0,37763.0,0.066182]
[1643813270003,47.05333657,37764.0,37763.0,0.066182]
[1643813270609,51.58530755,37764.0,37763.0,0.066182]
[1643813271704,51.30078294,37764.0,37763.0,0.066182]
[1643813271907,51.30078294,37764.0,37763.0,0.07132811]
[1643813272111,51.30078294,37764.0,37763.0,0.066182]
[1643813272974,0.8,37763.0,37754.0,0.13235926]
[1643813273176,0.8,37763.0,37757.0,0.05252998]
[1643813273177,0.77263106,37762.0,37757.0,0.05252998]
[1643813273373,0.8487,37761.0,37756.0,0.00049285]
[1643813273574,0.8487,37761.0,37760.0,0.003145]
[1643813273772,0.8487,37761.0,37756.0,0.00049285]
[1643813273773,0.55,37760.0,37756.0,0.00049285]
[1643813273973,0.68801457,37759.0,37756.0,0.00049285]
[1643813274174,0.26052973,37758.0,37756.0,0.00049285]
[1643813275383,0.26052973,37758.0,37756.0,9.265e-05]
[1643813276178,0.27595166,37757.0,37756.0,9.265e-05]
[1643813277718,0.57595166,37757.0,37756.0,9.265e-05]
[1643813278016,0.88991151,37757.0,37756.0,9.265e-05]
[1643813278217,0.57595166,37757.0,37756.0,9.265e-05]
[1643813278418,0.90714409,37757.0,37756.0,9.265e-05]
[1643813279117,0.26052973,37758.0,37756.0,9.265e-05]
[1643813280119,0.38346808,37757.0,37756.0,0.06628565]
[1643813280357,0.38346808,37757.0,37755.0,0.06618883]
[1643813280557,51.30078294,37764.0,37755.0,0.06618883]
[1643813280757,51.30078294,37764.0,37756.0,0.3189562]
[1643813280962,1.46694816,37763.0,37747.0,1.02157581]
[1643813281161,1.11641516,37762.0,37745.0,0.20094]
[1643813281357,1.11641516,37762.0,37742.0,0.00854056]
[1643813281558,0.20009288,37761.0,37742.0,0.00854056]
[1643813281757,0.31641516,37760.0,37742.0,0.00854056]
[1643813281958,0.2698393,37748.0,37747.0,0.06620082]
[1643813282157,0.2529605,37751.0,37747.0,0.48293482]
[1643813282360,0.4,37750.0,37744.0,0.20064]
[1643813282662,0.2303532,37749.0,37744.0,0.2068031]
[1643813282856,0.2303532,37749.0,37745.0,0.00694268]
[1643813283058,0.8,37748.0,37746.0,0.00098027]
[1643813283262,0.2303532,37749.0,37737.0,0.00744056]
[1643813283263,0.55,37746.0,37737.0,0.00744056]
[1643813283459,0.54514898,37745.0,37738.0,0.350533]
[1643813283659,0.31259173,37744.0,37739.0,0.00573731]
[1643813283860,0.24024255,37743.0,37740.0,0.00643173]
[1643813284142,0.27219697,37741.0,37736.0,0.0031]
[1643813284340,0.27219697,37741.0,37740.0,0.132434]
[1643813284541,0.27219697,37741.0,37740.0,0.13785016]
[1643813284742,0.27219697,37741.0,37740.0,0.14038652]
[1643813284940,0.27219697,37741.0,37740.0,0.132434]
[1643813285140,0.24024255,37743.0,37740.0,0.132434]
[1643813285141,0.24024255,37743.0,37740.0,0.13773771]
[1643813285345,0.24024255,37743.0,37740.0,0.13952218]
[1643813285542,0.24024255,37743.0,37741.0,0.00553567]
[1643813285741,0.24024255,37743.0,37742.0,0.00617313]
[1643813285943,0.24024255,37743.0,37740.0,0.13849448]
[1643813286144,0.24024255,37743.0,37740.0,0.132434]
[1643813286346,2.2762,37756.0,37742.0,0.066215]
[1643813286548,2.2762,37756.0,37744.0,0.132425]
[1643813286549,0.982,37756.0,37744.0,0.132425]
[1643813286747,0.982,37756.0,37743.0,0.00605334]
[1643813286947,0.7822,37761.0,37746.0,0.44850275]
[1643813287147,0.7822,37761.0,37753.0,0.29120918]
[1643813287345,0.53139933,37757.0,37753.0,0.00572381]
[1643813287545,0.53139933,37757.0,37754.0,0.00566512]
[1643813287755,0.53139933,37757.0,37754.0,0.00528213]
[1643813287954,0.53139933,37757.0,37755.0,0.00567489]
[1643813288151,0.53139933,37757.0,37756.0,0.00669148]
[1643813288352,0.33082875,37757.0,37755.0,0.066196]
[1643813288552,0.33082875,37757.0,37755.0,0.07313943]
[1643813288752,47.05333657,37764.0,37756.0,0.00683112]
[1643813288953,47.05333657,37764.0,37757.0,0.00576514]
[1643813289157,3.85041337,37758.0,37756.0,0.50744056]
[1643813289459,3.85017469,37758.0,37757.0,0.00744056]
[1643813289654,3.85017469,37758.0,37755.0,0.066196]
[1643813289655,0.33669222,37756.0,37755.0,0.066196]
[1643813289857,0.33669222,37756.0,37755.0,0.0739234]
[1643813290055,3.85017469,37758.0,37755.0,0.266356]
[1643813290255,3.85017469,37758.0,37755.0,0.27139807]
[1643813290256,0.21398209,37756.0,37755.0,0.27139807]
[1643813290460,0.21398209,37756.0,37755.0,0.266356]
[1643813290657,0.21398209,37756.0,37755.0,0.00562981]
[1643813290857,0.21398209,37756.0,37754.0,0.19865468]
[1643813290858,0.11398209,37756.0,37754.0,0.19865468]
[1643813291057,0.36094428,37755.0,37754.0,0.19858268]
[1643813291259,0.11398209,37756.0,37754.0,0.19858436]
[1643813291909,0.0004,37757.0,37754.0,0.19858436]
[1643813292111,3.45350669,37758.0,37754.0,0.19858436]
[1643813292312,0.29348354,37756.0,37755.0,0.066196]
[1643813292510,3.45350669,37758.0,37755.0,0.066196]
[1643813293512,3.05644269,37758.0,37756.0,0.06618167]
[1643813293713,3.05644269,37758.0,37756.0,0.16618167]
[1643813293911,2.48669536,37758.0,37756.0,0.36628167]
[1643813294210,2.08966836,37758.0,37757.0,0.80744056]
[1643813294412,2.08966836,37758.0,37757.0,0.90341235]
[1643813294610,2.08966836,37758.0,37757.0,1.05341235]
[1643813294611,1.69265836,37758.0,37757.0,1.05341235]
[1643813294810,47.435101,37764.0,37757.0,1.05341235]
[1643813294811,46.14095601,37764.0,37758.0,1.09332153]
[1643813295009,46.14064249,37764.0,37763.0,0.066171]
[1643813295662,45.75887806,37764.0,37763.0,0.066171]
[1643813295860,46.03079475,37764.0,37763.0,0.306171]
[1643813296658,46.03079475,37764.0,37763.0,0.386171]
[1643813297360,46.31496478,37764.0,37763.0,0.386171]
[1643813298165,46.04304809,37764.0,37763.0,0.486171]
[1643813298361,46.04304809,37764.0,37763.0,0.536171]
[1643813299012,46.04304809,37764.0,37762.0,0.41489377]
[1643813300010,44.40878232,37764.0,37763.0,1.10048435]
[1643813300224,38.86935758,37764.0,37763.0,2.33575925]
[1643813300412,34.86172382,37764.0,37763.0,2.26958825]
[1643813300615,25.48893611,37764.0,37763.0,2.32702881]
[1643813300822,19.77681485,37764.0,37763.0,2.37557059]
[1643813301016,3.06318175,37764.0,37763.0,2.37557059]
[1643813301215,3.3892,37776.0,37773.0,0.04660738]
[1643813301415,3.3892,37776.0,37773.0,1.80223064]
[1643813301612,1.46136425,37774.0,37773.0,1.51284794]
[1643813301810,0.45824605,37774.0,37773.0,1.66284794]
[1643813302010,0.268,37795.0,37773.0,2.36658659]
[1643813302011,0.29054414,37793.0,37773.0,2.36658659]
[1643813302217,0.268,37795.0,37792.0,0.066124]
[1643813302414,0.268,37795.0,37793.0,0.0487]
[1643813302864,0.268,37795.0,37793.0,0.1487]
[1643813303668,0.7474,37808.0,37793.0,0.1487]
[1643813303969,0.30310263,37812.0,37798.0,0.566106]
[1643813304166,0.00017201,37813.0,37800.0,0.04660738]
[1643813304366,0.00017201,37813.0,37804.0,0.10233525]
[1643813304567,0.00017201,37813.0,37805.0,0.0487]
[1643813304765,0.20028,37813.0,37808.0,0.05]
[1643813304965,0.20028,37813.0,37809.0,0.18089]
[1643813305464,0.19528,37813.0,37810.0,0.4]
[1643813305665,0.19528,37813.0,37811.0,0.0487]
[1643813305868,0.19528,37813.0,37811.0,0.346949]
[1643813306269,1.08337183,37812.0,37811.0,0.246949]
[1643813306509,0.79451088,37812.0,37811.0,0.246949]
[1643813306713,0.79451088,37812.0,37811.0,0.346949]
[1643813306910,0.78733614,37812.0,37811.0,0.246949]
[1643813307310,0.78733614,37812.0,37811.0,0.148249]
[1643813307514,0.78733614,37812.0,37810.0,0.266841]
[1643813307515,0.099991,37811.0,37810.0,1e-06]
[1643813307712,0.099991,37811.0,37804.0,0.29404112]
[1643813307713,0.22265311,37806.0,37804.0,0.29404112]
[1643813307913,0.10131243,37806.0,37804.0,0.29404112]
[1643813308113,0.10131243,37806.0,37804.0,0.31144712]
[1643813308717,0.10131243,37806.0,37803.0,0.126781]
[1643813308916,0.10131243,37806.0,37783.0,3.10298108]
[1643813308917,0.27277476,37794.0,37783.0,3.10428108]
[1643813309114,0.22788813,37788.0,37784.0,0.11901858]